Workbook

Sheet RELEVÉS
A1: 08:48:00 | K1: J | N1: N | Q1: W | AL1: AG | AO1: AK | AV1: AX | AW1: AX
B2: Pression mini | E2: Pression maxi | H2: Température ressentie | K2: Température mini | N2: Température maxi | Q2: Vent en Km/h | AB2: Humidité H% | AL2: Pluie | AO2: Temps de pluie | AV2: Sonde Soleil
B3: mini | D3: heure | E3: maxi | G3: heure | H3: mini | J3: heure | K3: maxi | M3: heure | N3: maxi | P3: heure | Q3: maxi | S3: Heure | U3: Moyenne | X3: Sens | Z3: Sens | AB3: Mini | AD3: Heure | AF3: Maxi | AH3: Heure | AJ3: Moy | AK3: mm | AM3: Heure | AO3: AK | AV3: =W1450/60/1440 -> 0.3277777778
AO4: 0 à 7h | AQ4: 7 à 12h | AS4: 12 à 19h | AU4: 19h à 24h
B5: =MIN(H9:H1448) -> 1021.9 | D5: =VLOOKUP($B5,$H$9:$Q$1448,10,0) -> 00:01:00 | E5: =MAX(H9:H1448) -> 1025.6 | G5: =VLOOKUP($E5,$H$9:$Q$1448,10,0) -> 11:29:00 | H5: =MIN($D$9:$D$1448) -> -2.1 | J5: =VLOOKUP($H5,$D$9:$Q$1448,14,0) -> 07:55:00 | K5: =MIN($B$9:$B$1448) -> 0.9 | M5: =VLOOKUP($K5,$B$9:$Q$1448,16,0) -> 07:49:00 | N5: =MAX(B9:B1448) -> 10 | P5: =VLOOKUP($N5,$B$9:$Q$1448,16,0) -> 15:25:00 | Q5: =MAX($E$9:$F$1448) -> 23.8 | S5: =VLOOKUP($Q5,$F$9:$Q$1448,12,0) -> 11:56:00 | U5: =AVERAGE(E9:E1448) -> 6.673668033 | Z5: ONO | AB5: =MIN(C9:C1448) -> 40 | AD5: =VLOOKUP($AB5,$C$9:$Q$1448,14,0) -> 16.2 | AF5: =MAX(C9:C1448) -> 83 | AH5: =VLOOKUP($AF5,$C$9:$Q$1448,15,0) -> 07:29:00 | AJ5: =AVERAGE(C9:C1448) -> 69.82069672 | AK5: =K1450 -> 0 | AM5: =(U1450/60)/1440 -> 00:00:00 | AO5: =AO6+AQ6 -> 00:00:00 | AS5: =AS6+AU6 -> 00:00:00
AO6: =SUM(U9:U428)/60/1440 -> 00:00:00 | AQ6: =SUM(U429:U728)/60/1440 -> 00:00:00 | AS6: =SUM(U729:U1148)/60/1440 -> 00:00:00 | AU6: =SUM(U1148:U1448)/60/1440 -> 00:00:00
B7: 5 | C7: 6 | D7: 8 | E7: 9 | F7: 10 | G7: 11 | H7: 13 | I7: 14 | J7: 15 | K7: 16
B8: T° Ext | C8: H% Ext | D8: Ressentie | E8: Vent | F8: Rafale | G8: Sens | H8: Pression | I8: Lux | J8: Pluie 1h | K8: Jour | L8: Semaine | M8: Mois | N8: Année | O8: CH1 | P8: CH2 | Q8: Heures | R8: Date | S8: Maxi | T8: Graph | U8: Pluie | W8: Soleil | AK8: Fin | AM8: Début | AQ8: Soleil
B9: 2.8 | C9: 82 | D9: 0.7 | E9: 7.6 | F9: 9.4 | G9: 329 | H9: 1022.4 | I9: 0 | J9: 0 | K9: 0 | L9: 1.8 | M9: 0 | N9: 98.6 | O9: 1.3 | P9: 1.7 | Q9: 00:00:00 | R9: 20220402 | Z9: N | AD9: 0 | AE9: 0
B10: 2.8 | C10: 82 | D10: 0.1 | E10: 9.7 | F10: 14.8 | G10: 278 | H10: 1021.9 | I10: 0 | J10: 0 | K10: 0 | L10: 1.8 | M10: 0 | N10: 98.6 | O10: 1.3 | P10: 1.7 | Q10: 00:01:00 | U10: =IF(J10>0,60,"") ->  | Z10: N | AB10: 0 | AD10: 11 | AE10: 22
B11: 2.8 | C11: 82 | D11: 1.2 | E11: 6.1 | F11: 7.2 | G11: 348 | H11: 1022.3 | I11: 0 | J11: 0 | K11: 0 | L11: 1.8 | M11: 0 | N11: 98.6 | O11: 1.3 | P11: 1.7 | Q11: 00:02:00 | U11: =IF(J11>0,60,"") ->  | Z11: NNE | AB11: 22.5 | AD11: =AB11+$AD$10 -> 33.5 | AE11: 45 | AM11: Aide mémoire
B12: 2.8 | C12: 82 | D12: 0.2 | E12: 9.4 | F12: 11.2 | G12: 330 | H12: 1022.2 | I12: 0 | J12: 0 | K12: 0 | L12: 1.8 | M12: 0 | N12: 98.6 | O12: 1.3 | P12: 1.7 | Q12: 00:03:00 | U12: =IF(J12>0,60,"") ->  | Z12: NE | AB12: 45 | AD12: 56 | AE12: 67 | AK12: Pluie | AM12: =SOMME(K9:K1448)
B13: 2.8 | C13: 82 | D13: -0.6 | E13: 13.3 | F13: 16.6 | G13: 272 | H13: 1022.1 | I13: 0 | J13: 0 | K13: 0 | L13: 1.8 | M13: 0 | N13: 98.6 | O13: 1.3 | P13: 1.7 | Q13: 00:04:00 | Z13: ENE | AB13: 67.5 | AD13: 78.5 | AE13: 90 | AK13: Pluie | AM13: =K1450
B14: 2.8 | C14: 82 | D14: 2.8 | E14: 4.7 | F14: 5.4 | G14: 265 | H14: 1022.3 | I14: 0 | J14: 0 | K14: 0 | L14: 1.8 | M14: 0 | N14: 98.6 | O14: 1.3 | P14: 1.7 | Q14: 00:05:00 | AB14: 90 | AD14: 101 | AE14: 112 | AK14: Commentaires | AO14: =SOMME(U9:U1448)
B15: 2.8 | C15: 82 | D15: 0.8 | E15: 7.2 | F15: 11.2 | G15: 276 | H15: 1022.3 | I15: 0 | J15: 0 | K15: 0 | L15: 1.8 | M15: 0 | N15: 98.6 | O15: 1.2 | P15: 1.7 | Q15: 00:06:00 | Z15: ESE | AB15: 112.5 | AD15: 123.5 | AE15: 135 | AK15: Soleil | AM15: =SOMME(W9:W1448)
B16: 2.7 | C16: 82 | D16: -0.4 | E16: 11.2 | F16: 14.8 | G16: 310 | H16: 1022.1 | I16: 0 | J16: 0 | K16: 0 | L16: 1.8 | M16: 0 | N16: 98.6 | O16: 1.2 | P16: 1.7 | Q16: 00:07:00 | Z16: SSE | AB16: 135 | AD16: 146 | AE16: 157 | AK16: Soleil | AM16: =W1450/60/1440
B17: 2.7 | C17: 82 | D17: 0.4 | E17: 7.9 | F17: 11.2 | G17: 306 | H17: 1022.1 | I17: 0 | J17: 0 | K17: 0 | L17: 1.8 | M17: 0 | N17: 98.6 | O17: 1.2 | P17: 1.7 | Q17: 00:08:00 | Z17: SE | AB17: 157.5 | AD17: 168.5 | AE17: 180
B18: 2.7 | C18: 82 | D18: 0 | E18: 9.7 | F18: 13 | G18: 293 | H18: 1022.2 | I18: 0 | J18: 0 | K18: 0 | L18: 1.8 | M18: 0 | N18: 98.6 | O18: 1.2 | P18: 1.7 | Q18: 00:09:00 | Z18: S | AB18: 180 | AD18: 191 | AE18: 202
B19: 2.7 | C19: 82 | D19: -0.5 | E19: 11.9 | F19: 16.6 | G19: 287 | H19: 1022.4 | I19: 0 | J19: 0 | K19: 0 | L19: 1.8 | M19: 0 | N19: 98.6 | O19: 1.2 | P19: 1.7 | Q19: 00:10:00 | Z19: SSO | AB19: 202.5 | AD19: 213.5 | AE19: 225
B20: 2.7 | C20: 82 | D20: -0.3 | E20: 10.8 | F20: 14.8 | G20: 308 | H20: 1022.1 | I20: 0 | J20: 0 | K20: 0 | L20: 1.8 | M20: 0 | N20: 98.6 | O20: 1.2 | P20: 1.7 | Q20: 00:11:00 | Z20: SO | AB20: 225 | AD20: 236 | AE20: 247
B21: 2.7 | C21: 82 | D21: -1.3 | E21: 16.6 | F21: 22 | G21: 267 | H21: 1022.3 | I21: 0 | J21: 0 | K21: 0 | L21: 1.8 | M21: 0 | N21: 98.6 | O21: 1.2 | P21: 1.7 | Q21: 00:12:00 | Z21: OSO | AB21: 247.5 | AD21: 258.5 | AE21: 270
B22: 2.7 | C22: 81 | D22: -0.4 | E22: 11.5 | F22: 16.6 | G22: 287 | H22: 1022.2 | I22: 0 | J22: 0 | K22: 0 | L22: 1.8 | M22: 0 | N22: 98.6 | O22: 1.2 | P22: 1.7 | Q22: 00:13:00 | Z22: O | AB22: 270 | AD22: 281 | AE22: 292
B23: 2.7 | C23: 81 | D23: -1.3 | E23: 16.6 | F23: 20.2 | G23: 299 | H23: 1022.1 | I23: 0 | J23: 0 | K23: 0 | L23: 1.8 | M23: 0 | N23: 98.6 | O23: 1.2 | P23: 1.7 | Q23: 00:14:00 | Z23: ONO | AB23: 292.5 | AD23: 303.5 | AE23: 315
B24: 2.8 | C24: 81 | D24: -0.2 | E24: 10.8 | F24: 18.4 | G24: 304 | H24: 1022.3 | I24: 0 | J24: 0 | K24: 0 | L24: 1.8 | M24: 0 | N24: 98.6 | O24: 1.2 | P24: 1.7 | Q24: 00:15:00 | Z24: NO | AB24: 315 | AD24: 326 | AE24: 337
B25: 2.8 | C25: 80 | D25: 0.1 | E25: 9.7 | F25: 16.6 | G25: 281 | H25: 1022.3 | I25: 0 | J25: 0 | K25: 0 | L25: 1.8 | M25: 0 | N25: 98.6 | O25: 1.2 | P25: 1.8 | Q25: 00:16:00 | Z25: NNO | AB25: 337.5 | AD25: 348.5 | AE25: 349
B26: 2.8 | C26: 80 | D26: 0.5 | E26: 8.3 | F26: 14.8 | G26: 298 | H26: 1022.3 | I26: 0 | J26: 0 | K26: 0 | L26: 1.8 | M26: 0 | N26: 98.6 | O26: 1.2 | P26: 1.8 | Q26: 00:17:00 | Z26: N | AB26: 349 | AD26: 360
B27: 2.8 | C27: 80 | D27: -0.3 | E27: 11.5 | F27: 16.6 | G27: 285 | H27: 1022.1 | I27: 0 | J27: 0 | K27: 0 | L27: 1.8 | M27: 0 | N27: 98.6 | O27: 1.2 | P27: 1.8 | Q27: 00:18:00
B28: 2.8 | C28: 80 | D28: -0.5 | E28: 12.2 | F28: 16.6 | G28: 308 | H28: 1022.3 | I28: 0 | J28: 0 | K28: 0 | L28: 1.8 | M28: 0 | N28: 98.6 | O28: 1.2 | P28: 1.8 | Q28: 00:19:00 | AD28: =INDEX($Z$9:$Z$26,IF(ISNA(MATCH($AD$30,$AD$9:$AD$26,0)),MATCH($AD$30,$AD$9:$AD$26,1)+1,MATCH($AD$30,$AD$9:$AD$26,0)),1) -> NNO
B29: 2.8 | C29: 80 | D29: -0.6 | E29: 13.3 | F29: 20.2 | G29: 279 | H29: 1022.3 | I29: 0 | J29: 0 | K29: 0 | L29: 1.8 | M29: 0 | N29: 98.6 | O29: 1.2 | P29: 1.8 | Q29: 00:20:00 | AB29: =SUM(AB32:AB47) -> 1 | AD29: =MAX(AB32:AB47) -> 0.2142857143 | AF29: =SUM(AF32:AF47) -> 42
B30: 2.8 | C30: 80 | D30: -0.5 | E30: 12.2 | F30: 16.6 | G30: 294 | H30: 1022.4 | I30: 0 | J30: 0 | K30: 0 | L30: 1.8 | M30: 0 | N30: 98.6 | O30: 1.2 | P30: 1.8 | Q30: 00:21:00 | AD30: =VLOOKUP(AD29,AB32:AD47,AD31,0) -> 337
B31: 2.8 | C31: 80 | D31: 0.2 | E31: 9.4 | F31: 13 | G31: 258 | H31: 1022.3 | I31: 0 | J31: 0 | K31: 0 | L31: 1.8 | M31: 0 | N31: 98.6 | O31: 1.3 | P31: 1.8 | Q31: 00:22:00 | AD31: 3
B32: 2.8 | C32: 80 | D32: 0.8 | E32: 7.2 | F32: 9.4 | G32: 304 | H32: 1022.3 | I32: 0 | J32: 0 | K32: 0 | L32: 1.8 | M32: 0 | N32: 98.6 | O32: 1.3 | P32: 1.8 | Q32: 00:23:00 | AB32: =AF32/$AF$29 -> 0.09523809524 | AD32: 0 | AF32: =COUNTIF($G$9:$G$1448,AD32) -> 4
B33: 2.8 | C33: 80 | D33: 0.3 | E33: 9 | F33: 11.2 | G33: 287 | H33: 1022.4 | I33: 0 | J33: 0 | K33: 0 | L33: 1.8 | M33: 0 | N33: 98.6 | O33: 1.3 | P33: 1.8 | Q33: 00:24:00 | AB33: =AF33/$AF$29 -> 0.1428571429 | AD33: 22 | AF33: =COUNTIF($G$9:$G$1448,AD33) -> 6
B34: 2.7 | C34: 80 | D34: -0.2 | E34: 10.4 | F34: 13 | G34: 298 | H34: 1022.5 | I34: 0 | J34: 0 | K34: 0 | L34: 1.8 | M34: 0 | N34: 98.6 | O34: 1.3 | P34: 1.7 | Q34: 00:25:00 | AB34: =AF34/$AF$29 -> 0.04761904762 | AD34: 45 | AF34: 2
B35: 2.7 | C35: 80 | D35: -0.4 | E35: 11.2 | F35: 14.8 | G35: 345 | H35: 1022.1 | I35: 0 | J35: 0 | K35: 0 | L35: 1.8 | M35: 0 | N35: 98.6 | O35: 1.3 | P35: 1.7 | Q35: 00:26:00 | AB35: 0 | AD35: 67 | AF35: =COUNTIF($G$9:$G$1448,AD35) -> 0
B36: 2.7 | C36: 80 | D36: 0.2 | E36: 8.6 | F36: 14.8 | G36: 285 | H36: 1022.3 | I36: 0 | J36: 0 | K36: 0 | L36: 1.8 | M36: 0 | N36: 98.6 | O36: 1.2 | P36: 1.7 | Q36: 00:27:00 | AB36: 0 | AD36: 90 | AF36: 0
B37: 2.7 | C37: 80 | D37: 2.7 | E37: 4.7 | F37: 5.4 | G37: 300 | H37: 1022.3 | I37: 0 | J37: 0 | K37: 0 | L37: 1.8 | M37: 0 | N37: 98.6 | O37: 1.2 | P37: 1.7 | Q37: 00:28:00 | AB37: 0 | AD37: 112 | AF37: 0
B38: 2.7 | C38: 80 | D38: 0.2 | E38: 8.6 | F38: 9.4 | G38: 307 | H38: 1022.4 | I38: 0 | J38: 0 | K38: 0 | L38: 1.8 | M38: 0 | N38: 98.6 | O38: 1.2 | P38: 1.7 | Q38: 00:29:00 | AB38: 0 | AD38: 135 | AF38: 0
B39: 2.7 | C39: 80 | D39: -0.2 | E39: 10.4 | F39: 13 | G39: 259 | H39: 1022.3 | I39: 0 | J39: 0 | K39: 0 | L39: 1.8 | M39: 0 | N39: 98.6 | O39: 1.2 | P39: 1.7 | Q39: 00:30:00 | AB39: 0 | AD39: 157 | AF39: 0
B40: 2.7 | C40: 80 | D40: -0.5 | E40: 11.9 | F40: 14.8 | G40: 257 | H40: 1022.3 | I40: 0 | J40: 0 | K40: 0 | L40: 1.8 | M40: 0 | N40: 98.6 | O40: 1.2 | P40: 1.7 | Q40: 00:31:00 | AB40: 0 | AD40: 180 | AF40: 0
B41: 2.7 | C41: 80 | D41: 1.1 | E41: 5.8 | F41: 7.2 | G41: 323 | H41: 1022.3 | I41: 0 | J41: 0 | K41: 0 | L41: 1.8 | M41: 0 | N41: 98.6 | O41: 1.2 | P41: 1.7 | Q41: 00:32:00 | AB41: 0 | AD41: 202 | AF41: 0
B42: 2.7 | C42: 80 | D42: -0.1 | E42: 10.1 | F42: 14.8 | G42: 276 | H42: 1022.5 | I42: 0 | J42: 0 | K42: 0 | L42: 1.8 | M42: 0 | N42: 98.6 | O42: 1.2 | P42: 1.7 | Q42: 00:33:00 | AB42: 0.02380952381 | AD42: 225 | AF42: 1
B43: 2.7 | C43: 80 | D43: 0.2 | E43: 9 | F43: 13 | G43: 64 | H43: 1022.5 | I43: 0 | J43: 0 | K43: 0 | L43: 1.8 | M43: 0 | N43: 98.6 | O43: 1.2 | P43: 1.6 | Q43: 00:34:00 | AB43: 0 | AD43: 247 | AF43: 0
B44: 2.7 | C44: 80 | D44: 1.3 | E44: 5.4 | F44: 7.2 | G44: 346 | H44: 1022.3 | I44: 0 | J44: 0 | K44: 0 | L44: 1.8 | M44: 0 | N44: 98.6 | O44: 1.1 | P44: 1.7 | Q44: 00:35:00 | AB44: 0.09523809524 | AD44: 270 | AF44: 4
B45: 2.7 | C45: 80 | D45: -0.4 | E45: 11.2 | F45: 14.8 | G45: 19 | H45: 1022.3 | I45: 0 | J45: 0 | K45: 0 | L45: 1.8 | M45: 0 | N45: 98.6 | O45: 1.1 | P45: 1.6 | Q45: 00:36:00 | AB45: 0.1904761905 | AD45: 292 | AF45: 8
B46: 2.7 | C46: 80 | D46: -0.6 | E46: 12.2 | F46: 14.8 | G46: 311 | H46: 1022.3 | I46: 0 | J46: 0 | K46: 0 | L46: 1.8 | M46: 0 | N46: 98.6 | O46: 1.1 | P46: 1.6 | Q46: 00:37:00 | AB46: 0.1904761905 | AD46: 315 | AF46: 8
B47: 2.7 | C47: 80 | D47: -0.8 | E47: 13.7 | F47: 16.6 | G47: 275 | H47: 1022.3 | I47: 0 | J47: 0 | K47: 0 | L47: 1.8 | M47: 0 | N47: 98.6 | O47: 1.1 | P47: 1.6 | Q47: 00:38:00 | AB47: 0.2142857143 | AD47: 337 | AF47: 9
B48: 2.6 | C48: 80 | D48: 0.8 | E48: 6.5 | F48: 11.2 | G48: 236 | H48: 1022.2 | I48: 0 | J48: 0 | K48: 0 | L48: 1.8 | M48: 0 | N48: 98.6 | O48: 1.1 | P48: 1.6 | Q48: 00:39:00
B49: 2.6 | C49: 80 | D49: 2.6 | E49: 3.6 | F49: 5.4 | G49: 266 | H49: 1022.3 | I49: 0 | J49: 0 | K49: 0 | L49: 1.8 | M49: 0 | N49: 98.6 | O49: 1.1 | P49: 1.6 | Q49: 00:40:00
B50: 2.6 | C50: 80 | D50: 0.4 | E50: 7.6 | F50: 9.4 | G50: 332 | H50: 1022.4 | I50: 0 | J50: 0 | K50: 0 | L50: 1.8 | M50: 0 | N50: 98.6 | O50: 1.1 | P50: 1.6 | Q50: 00:41:00
B51: 2.6 | C51: 80 | D51: -1.1 | E51: 14.4 | F51: 16.6 | G51: 329 | H51: 1022.5 | I51: 0 | J51: 0 | K51: 0 | L51: 1.8 | M51: 0 | N51: 98.6 | O51: 1 | P51: 1.5 | Q51: 00:42:00
B52: 2.6 | C52: 80 | D52: 0.1 | E52: 8.6 | F52: 9.4 | G52: 320 | H52: 1022.6 | I52: 0 | J52: 0 | K52: 0 | L52: 1.8 | M52: 0 | N52: 98.6 | O52: 1 | P52: 1.5 | Q52: 00:43:00
B53: 2.6 | C53: 80 | D53: -0.3 | E53: 10.4 | F53: 14.8 | G53: 312 | H53: 1022.2 | I53: 0 | J53: 0 | K53: 0 | L53: 1.8 | M53: 0 | N53: 98.6 | O53: 1 | P53: 1.5 | Q53: 00:44:00
B54: 2.6 | C54: 80 | D54: -0.1 | E54: 9.7 | F54: 11.2 | G54: 305 | H54: 1022.2 | I54: 0 | J54: 0 | K54: 0 | L54: 1.8 | M54: 0 | N54: 98.6 | O54: 1 | P54: 1.5 | Q54: 00:45:00
B55: 2.6 | C55: 80 | D55: -0.5 | E55: 11.2 | F55: 13 | G55: 273 | H55: 1022.4 | I55: 0 | J55: 0 | K55: 0 | L55: 1.8 | M55: 0 | N55: 98.6 | O55: 1 | P55: 1.5 | Q55: 00:46:00
B56: 2.6 | C56: 80 | D56: 0.5 | E56: 7.2 | F56: 9.4 | G56: 315 | H56: 1022.4 | I56: 0 | J56: 0 | K56: 0 | L56: 1.8 | M56: 0 | N56: 98.6 | O56: 1 | P56: 1.5 | Q56: 00:47:00
B57: 2.5 | C57: 80 | D57: 2.5 | E57: 3.6 | F57: 5.4 | G57: 291 | H57: 1022.4 | I57: 0 | J57: 0 | K57: 0 | L57: 1.8 | M57: 0 | N57: 98.6 | O57: 1 | P57: 1.5 | Q57: 00:48:00
B58: 2.5 | C58: 81 | D58: 0.1 | E58: 8.3 | F58: 13 | G58: 294 | H58: 1022.3 | I58: 0 | J58: 0 | K58: 0 | L58: 1.8 | M58: 0 | N58: 98.6 | O58: 1 | P58: 1.5 | Q58: 00:49:00
B59: 2.5 | C59: 81 | D59: -0.6 | E59: 11.2 | F59: 13 | G59: 292 | H59: 1022.2 | I59: 0 | J59: 0 | K59: 0 | L59: 1.8 | M59: 0 | N59: 98.6 | O59: 1 | P59: 1.5 | Q59: 00:50:00
B60: 2.5 | C60: 80 | D60: -0.5 | E60: 10.4 | F60: 13 | G60: 322 | H60: 1022.4 | I60: 0 | J60: 0 | K60: 0 | L60: 1.8 | M60: 0 | N60: 98.6 | O60: 1 | P60: 1.5 | Q60: 00:51:00
B61: 2.5 | C61: 80 | D61: 0.5 | E61: 6.8 | F61: 9.4 | G61: 268 | H61: 1022.3 | I61: 0 | J61: 0 | K61: 0 | L61: 1.8 | M61: 0 | N61: 98.6 | O61: 1 | P61: 1.5 | Q61: 00:52:00
B62: 2.5 | C62: 80 | D62: 0.8 | E62: 6.1 | F62: 7.2 | G62: 284 | H62: 1022.3 | I62: 0 | J62: 0 | K62: 0 | L62: 1.8 | M62: 0 | N62: 98.6 | O62: 1 | P62: 1.5 | Q62: 00:53:00
B63: 2.5 | C63: 81 | D63: -0.6 | E63: 11.2 | F63: 13 | G63: 312 | H63: 1022.4 | I63: 0 | J63: 0 | K63: 0 | L63: 1.8 | M63: 0 | N63: 98.6 | O63: 1 | P63: 1.5 | Q63: 00:54:00
B64: 2.5 | C64: 81 | D64: 0 | E64: 8.6 | F64: 9.4 | G64: 273 | H64: 1022.4 | I64: 0 | J64: 0 | K64: 0 | L64: 1.8 | M64: 0 | N64: 98.6 | O64: 1 | P64: 1.5 | Q64: 00:55:00
B65: 2.5 | C65: 81 | D65: 2.5 | E65: 4 | F65: 5.4 | G65: 311 | H65: 1022.4 | I65: 0 | J65: 0 | K65: 0 | L65: 1.8 | M65: 0 | N65: 98.6 | O65: 1 | P65: 1.5 | Q65: 00:56:00
B66: 2.5 | C66: 81 | D66: -0.2 | E66: 9.7 | F66: 13 | G66: 283 | H66: 1022.3 | I66: 0 | J66: 0 | K66: 0 | L66: 1.8 | M66: 0 | N66: 98.6 | O66: 0.9 | P66: 1.4 | Q66: 00:57:00
B67: 2.5 | C67: 81 | D67: -0.7 | E67: 11.5 | F67: 14.8 | G67: 277 | H67: 1022.4 | I67: 0 | J67: 0 | K67: 0 | L67: 1.8 | M67: 0 | N67: 98.6 | O67: 0.9 | P67: 1.4 | Q67: 00:58:00
B68: 2.4 | C68: 81 | D68: 2.4 | E68: 3.6 | F68: 5.4 | G68: 9 | H68: 1022.4 | I68: 0 | J68: 0 | K68: 0 | L68: 1.8 | M68: 0 | N68: 98.6 | O68: 0.9 | P68: 1.4 | Q68: 00:59:00
B69: 2.5 | C69: 81 | D69: 0 | E69: 8.6 | F69: 11.2 | G69: 328 | H69: 1022.4 | I69: 0 | J69: 0 | K69: 0 | L69: 1.8 | M69: 0 | N69: 98.6 | O69: 0.9 | P69: 1.4 | Q69: 01:00:00
B70: 2.5 | C70: 81 | D70: 0.6 | E70: 6.5 | F70: 11.2 | G70: 332 | H70: 1022.4 | I70: 0 | J70: 0 | K70: 0 | L70: 1.8 | M70: 0 | N70: 98.6 | O70: 0.9 | P70: 1.4 | Q70: 01:01:00
B71: 2.5 | C71: 81 | D71: -0.2 | E71: 9.4 | F71: 14.8 | G71: 296 | H71: 1022.5 | I71: 0 | J71: 0 | K71: 0 | L71: 1.8 | M71: 0 | N71: 98.6 | O71: 0.9 | P71: 1.4 | Q71: 01:02:00
B72: 2.5 | C72: 80 | D72: 0.6 | E72: 6.5 | F72: 7.2 | G72: 296 | H72: 1022.5 | I72: 0 | J72: 0 | K72: 0 | L72: 1.8 | M72: 0 | N72: 98.6 | O72: 0.9 | P72: 1.4 | Q72: 01:03:00
B73: 2.5 | C73: 81 | D73: 1.2 | E73: 5 | F73: 7.2 | G73: 260 | H73: 1022.3 | I73: 0 | J73: 0 | K73: 0 | L73: 1.8 | M73: 0 | N73: 98.6 | O73: 0.9 | P73: 1.4 | Q73: 01:04:00
B74: 2.5 | C74: 80 | D74: -0.2 | E74: 9.7 | F74: 13 | G74: 323 | H74: 1022.4 | I74: 0 | J74: 0 | K74: 0 | L74: 1.8 | M74: 0 | N74: 98.6 | O74: 0.9 | P74: 1.4 | Q74: 01:05:00
B75: 2.5 | C75: 80 | D75: 0.6 | E75: 6.5 | F75: 7.2 | G75: 278 | H75: 1022.3 | I75: 0 | J75: 0 | K75: 0 | L75: 1.8 | M75: 0 | N75: 98.6 | O75: 0.9 | P75: 1.4 | Q75: 01:06:00 | U75: =IF(J75>0,60,"") -> 
B76: 2.5 | C76: 80 | D76: 2.5 | E76: 4 | F76: 5.4 | G76: 33 | H76: 1022.5 | I76: 0 | J76: 0 | K76: 0 | L76: 1.8 | M76: 0 | N76: 98.6 | O76: 1 | P76: 1.4 | Q76: 01:07:00
B77: 2.5 | C77: 80 | D77: -0.8 | E77: 12.2 | F77: 14.8 | G77: 279 | H77: 1022.4 | I77: 0 | J77: 0 | K77: 0 | L77: 1.8 | M77: 0 | N77: 98.6 | O77: 1 | P77: 1.4 | Q77: 01:08:00
B78: 2.6 | C78: 80 | D78: 0.1 | E78: 8.6 | F78: 13 | G78: 342 | H78: 1022.3 | I78: 0 | J78: 0 | K78: 0 | L78: 1.8 | M78: 0 | N78: 98.6 | O78: 0.9 | P78: 1.4 | Q78: 01:09:00
B79: 2.6 | C79: 80 | D79: 0.5 | E79: 7.2 | F79: 11.2 | G79: 259 | H79: 1022.5 | I79: 0 | J79: 0 | K79: 0 | L79: 1.8 | M79: 0 | N79: 98.6 | O79: 0.9 | P79: 1.4 | Q79: 01:10:00
B80: 2.6 | C80: 80 | D80: 2.6 | E80: 2.2 | F80: 3.6 | G80: 27 | H80: 1022.3 | I80: 0 | J80: 0 | K80: 0 | L80: 1.8 | M80: 0 | N80: 98.6 | O80: 0.9 | P80: 1.4 | Q80: 01:11:00
B81: 2.6 | C81: 80 | D81: 0.8 | E81: 6.5 | F81: 11.2 | G81: 356 | H81: 1022.4 | I81: 0 | J81: 0 | K81: 0 | L81: 1.8 | M81: 0 | N81: 98.6 | O81: 1 | P81: 1.4 | Q81: 01:12:00
B82: 2.6 | C82: 80 | D82: -0.3 | E82: 10.4 | F82: 13 | G82: 298 | H82: 1022.5 | I82: 0 | J82: 0 | K82: 0 | L82: 1.8 | M82: 0 | N82: 98.6 | O82: 0.9 | P82: 1.4 | Q82: 01:13:00
B83: 2.5 | C83: 80 | D83: 0.8 | E83: 6.1 | F83: 7.2 | G83: 269 | H83: 1022.3 | I83: 0 | J83: 0 | K83: 0 | L83: 1.8 | M83: 0 | N83: 98.6 | O83: 0.9 | P83: 1.4 | Q83: 01:14:00
B84: 2.5 | C84: 80 | D84: -0.3 | E84: 10.1 | F84: 14.8 | G84: 320 | H84: 1022.4 | I84: 0 | J84: 0 | K84: 0 | L84: 1.8 | M84: 0 | N84: 98.6 | O84: 0.9 | P84: 1.4 | Q84: 01:15:00
B85: 2.5 | C85: 80 | D85: 0.4 | E85: 7.2 | F85: 11.2 | G85: 323 | H85: 1022.4 | I85: 0 | J85: 0 | K85: 0 | L85: 1.8 | M85: 0 | N85: 98.6 | O85: 0.9 | P85: 1.4 | Q85: 01:16:00
B86: 2.5 | C86: 80 | D86: 0.4 | E86: 7.2 | F86: 9.4 | G86: 296 | H86: 1022.4 | I86: 0 | J86: 0 | K86: 0 | L86: 1.8 | M86: 0 | N86: 98.6 | O86: 0.9 | P86: 1.4 | Q86: 01:17:00
B87: 2.5 | C87: 80 | D87: -0.2 | E87: 9.7 | F87: 11.2 | G87: 257 | H87: 1022.6 | I87: 0 | J87: 0 | K87: 0 | L87: 1.8 | M87: 0 | N87: 98.6 | O87: 0.9 | P87: 1.4 | Q87: 01:18:00
B88: 2.5 | C88: 80 | D88: 0.5 | E88: 6.8 | F88: 9.4 | G88: 303 | H88: 1022.5 | I88: 0 | J88: 0 | K88: 0 | L88: 1.8 | M88: 0 | N88: 98.6 | O88: 0.9 | P88: 1.4 | Q88: 01:19:00
B89: 2.5 | C89: 80 | D89: -0.5 | E89: 10.4 | F89: 13 | G89: 259 | H89: 1022.4 | I89: 0 | J89: 0 | K89: 0 | L89: 1.8 | M89: 0 | N89: 98.6 | O89: 0.9 | P89: 1.4 | Q89: 01:20:00
B90: 2.5 | C90: 80 | D90: 2.5 | E90: 4 | F90: 5.4 | G90: 283 | H90: 1022.5 | I90: 0 | J90: 0 | K90: 0 | L90: 1.8 | M90: 0 | N90: 98.6 | O90: 0.9 | P90: 1.4 | Q90: 01:21:00
B91: 2.4 | C91: 80 | D91: -0.4 | E91: 9.7 | F91: 14.8 | G91: 278 | H91: 1022.4 | I91: 0 | J91: 0 | K91: 0 | L91: 1.8 | M91: 0 | N91: 98.6 | O91: 0.9 | P91: 1.4 | Q91: 01:22:00
B92: 2.4 | C92: 80 | D92: 2.4 | E92: 3.6 | F92: 5.4 | G92: 318 | H92: 1022.6 | I92: 0 | J92: 0 | K92: 0 | L92: 1.8 | M92: 0 | N92: 98.6 | O92: 0.9 | P92: 1.4 | Q92: 01:23:00
B93: 2.4 | C93: 80 | D93: 1 | E93: 5.4 | F93: 7.2 | G93: 9 | H93: 1022.5 | I93: 0 | J93: 0 | K93: 0 | L93: 1.8 | M93: 0 | N93: 98.6 | O93: 0.9 | P93: 1.4 | Q93: 01:24:00
B94: 2.4 | C94: 80 | D94: 2.4 | E94: 3.6 | F94: 5.4 | G94: 330 | H94: 1022.6 | I94: 0 | J94: 0 | K94: 0 | L94: 1.8 | M94: 0 | N94: 98.6 | O94: 0.8 | P94: 1.4 | Q94: 01:25:00
B95: 2.4 | C95: 81 | D95: -0.3 | E95: 9.4 | F95: 13 | G95: 272 | H95: 1022.6 | I95: 0 | J95: 0 | K95: 0 | L95: 1.8 | M95: 0 | N95: 98.6 | O95: 0.9 | P95: 1.3 | Q95: 01:26:00
B96: 2.4 | C96: 81 | D96: 0.1 | E96: 7.9 | F96: 11.2 | G96: 274 | H96: 1022.6 | I96: 0 | J96: 0 | K96: 0 | L96: 1.8 | M96: 0 | N96: 98.6 | O96: 0.8 | P96: 1.3 | Q96: 01:27:00
B97: 2.4 | C97: 80 | D97: 1.1 | E97: 5 | F97: 5.4 | G97: 265 | H97: 1022.6 | I97: 0 | J97: 0 | K97: 0 | L97: 1.8 | M97: 0 | N97: 98.6 | O97: 0.8 | P97: 1.3 | Q97: 01:28:00
B98: 2.3 | C98: 80 | D98: 0.6 | E98: 6.1 | F98: 9.4 | G98: 297 | H98: 1022.5 | I98: 0 | J98: 0 | K98: 0 | L98: 1.8 | M98: 0 | N98: 98.6 | O98: 0.8 | P98: 1.3 | Q98: 01:29:00
B99: 2.3 | C99: 80 | D99: 2.3 | E99: 3.6 | F99: 7.2 | G99: 347 | H99: 1022.6 | I99: 0 | J99: 0 | K99: 0 | L99: 1.8 | M99: 0 | N99: 98.6 | O99: 0.8 | P99: 1.3 | Q99: 01:30:00
B100: 2.3 | C100: 80 | D100: 0.2 | E100: 7.2 | F100: 11.2 | G100: 266 | H100: 1022.5 | I100: 0 | J100: 0 | K100: 0 | L100: 1.8 | M100: 0 | N100: 98.6 | O100: 0.8 | P100: 1.3 | Q100: 01:31:00
B101: 2.3 | C101: 80 | D101: -0.1 | E101: 8.3 | F101: 9.4 | G101: 309 | H101: 1022.6 | I101: 0 | J101: 0 | K101: 0 | L101: 1.8 | M101: 0 | N101: 98.6 | O101: 0.8 | P101: 1.2 | Q101: 01:32:00
B102: 2.3 | C102: 80 | D102: 2.3 | E102: 4.7 | F102: 7.2 | G102: 52 | H102: 1022.6 | I102: 0 | J102: 0 | K102: 0 | L102: 1.8 | M102: 0 | N102: 98.6 | O102: 0.8 | P102: 1.2 | Q102: 01:33:00
B103: 2.3 | C103: 80 | D103: 0.4 | E103: 6.5 | F103: 9.4 | G103: 299 | H103: 1022.6 | I103: 0 | J103: 0 | K103: 0 | L103: 1.8 | M103: 0 | N103: 98.6 | O103: 0.8 | P103: 1.2 | Q103: 01:34:00
B104: 2.4 | C104: 80 | D104: 2.4 | E104: 4 | F104: 5.4 | G104: 0 | H104: 1022.7 | I104: 0 | J104: 0 | K104: 0 | L104: 1.8 | M104: 0 | N104: 98.6 | O104: 0.8 | P104: 1.2 | Q104: 01:35:00
B105: 2.4 | C105: 80 | D105: 0.7 | E105: 6.1 | F105: 9.4 | G105: 312 | H105: 1022.6 | I105: 0 | J105: 0 | K105: 0 | L105: 1.8 | M105: 0 | N105: 98.6 | O105: 0.8 | P105: 1.2 | Q105: 01:36:00
B106: 2.4 | C106: 80 | D106: 0.2 | E106: 7.6 | F106: 9.4 | G106: 288 | H106: 1022.7 | I106: 0 | J106: 0 | K106: 0 | L106: 1.8 | M106: 0 | N106: 98.6 | O106: 0.8 | P106: 1.2 | Q106: 01:37:00
B107: 2.4 | C107: 80 | D107: -0.3 | E107: 9.4 | F107: 13 | G107: 284 | H107: 1022.4 | I107: 0 | J107: 0 | K107: 0 | L107: 1.8 | M107: 0 | N107: 98.6 | O107: 0.8 | P107: 1.2 | Q107: 01:38:00
B108: 2.4 | C108: 80 | D108: 1 | E108: 5.4 | F108: 7.2 | G108: 258 | H108: 1022.6 | I108: 0 | J108: 0 | K108: 0 | L108: 1.8 | M108: 0 | N108: 98.6 | O108: 0.8 | P108: 1.2 | Q108: 01:39:00
B109: 2.4 | C109: 80 | D109: -0.3 | E109: 9.4 | F109: 11.2 | G109: 288 | H109: 1022.7 | I109: 0 | J109: 0 | K109: 0 | L109: 1.8 | M109: 0 | N109: 98.6 | O109: 0.8 | P109: 1.2 | Q109: 01:40:00
B110: 2.4 | C110: 80 | D110: 0.7 | E110: 6.1 | F110: 7.2 | G110: 308 | H110: 1022.5 | I110: 0 | J110: 0 | K110: 0 | L110: 1.8 | M110: 0 | N110: 98.6 | O110: 0.8 | P110: 1.2 | Q110: 01:41:00
B111: 2.4 | C111: 80 | D111: 0.4 | E111: 6.8 | F111: 9.4 | G111: 264 | H111: 1022.6 | I111: 0 | J111: 0 | K111: 0 | L111: 1.8 | M111: 0 | N111: 98.6 | O111: 0.8 | P111: 1.2 | Q111: 01:42:00
B112: 2.4 | C112: 80 | D112: -0.9 | E112: 11.9 | F112: 14.8 | G112: 291 | H112: 1022.7 | I112: 0 | J112: 0 | K112: 0 | L112: 1.8 | M112: 0 | N112: 98.6 | O112: 0.8 | P112: 1.2 | Q112: 01:43:00
B113: 2.4 | C113: 80 | D113: 2.4 | E113: 4 | F113: 5.4 | G113: 17 | H113: 1022.7 | I113: 0 | J113: 0 | K113: 0 | L113: 1.8 | M113: 0 | N113: 98.6 | O113: 0.8 | P113: 1.2 | Q113: 01:44:00
B114: 2.4 | C114: 80 | D114: 2.4 | E114: 2.5 | F114: 3.6 | G114: 32 | H114: 1022.7 | I114: 0 | J114: 0 | K114: 0 | L114: 1.8 | M114: 0 | N114: 98.6 | O114: 0.8 | P114: 1.2 | Q114: 01:45:00
B115: 2.3 | C115: 80 | D115: -0.5 | E115: 9.7 | F115: 13 | G115: 285 | H115: 1022.6 | I115: 0 | J115: 0 | K115: 0 | L115: 1.8 | M115: 0 | N115: 98.6 | O115: 0.8 | P115: 1.2 | Q115: 01:46:00
B116: 2.3 | C116: 80 | D116: 2.3 | E116: 4.7 | F116: 5.4 | G116: 28 | H116: 1022.5 | I116: 0 | J116: 0 | K116: 0 | L116: 1.8 | M116: 0 | N116: 98.6 | O116: 0.8 | P116: 1.2 | Q116: 01:47:00
B117: 2.3 | C117: 80 | D117: -0.5 | E117: 9.7 | F117: 13 | G117: 297 | H117: 1022.7 | I117: 0 | J117: 0 | K117: 0 | L117: 1.8 | M117: 0 | N117: 98.6 | O117: 0.8 | P117: 1.2 | Q117: 01:48:00
B118: 2.3 | C118: 80 | D118: 0.6 | E118: 6.1 | F118: 9.4 | G118: 319 | H118: 1022.6 | I118: 0 | J118: 0 | K118: 0 | L118: 1.8 | M118: 0 | N118: 98.6 | O118: 0.7 | P118: 1.2 | Q118: 01:49:00
B119: 2.3 | C119: 80 | D119: 0.7 | E119: 5.8 | F119: 7.2 | G119: 287 | H119: 1022.7 | I119: 0 | J119: 0 | K119: 0 | L119: 1.8 | M119: 0 | N119: 98.6 | O119: 0.7 | P119: 1.2 | Q119: 01:50:00
B120: 2.3 | C120: 80 | D120: -0.1 | E120: 7.9 | F120: 13 | G120: 334 | H120: 1022.6 | I120: 0 | J120: 0 | K120: 0 | L120: 1.8 | M120: 0 | N120: 98.6 | O120: 0.7 | P120: 1.2 | Q120: 01:51:00
B121: 2.3 | C121: 80 | D121: -0.1 | E121: 8.3 | F121: 11.2 | G121: 267 | H121: 1022.7 | I121: 0 | J121: 0 | K121: 0 | L121: 1.8 | M121: 0 | N121: 98.6 | O121: 0.7 | P121: 1.2 | Q121: 01:52:00
B122: 2.3 | C122: 80 | D122: 0.2 | E122: 7.2 | F122: 11.2 | G122: 267 | H122: 1022.7 | I122: 0 | J122: 0 | K122: 0 | L122: 1.8 | M122: 0 | N122: 98.6 | O122: 0.7 | P122: 1.2 | Q122: 01:53:00
B123: 2.3 | C123: 80 | D123: 0.6 | E123: 6.1 | F123: 9.4 | G123: 276 | H123: 1022.8 | I123: 0 | J123: 0 | K123: 0 | L123: 1.8 | M123: 0 | N123: 98.6 | O123: 0.7 | P123: 1.2 | Q123: 01:54:00
B124: 2.3 | C124: 80 | D124: 0.4 | E124: 6.5 | F124: 9.4 | G124: 279 | H124: 1022.7 | I124: 0 | J124: 0 | K124: 0 | L124: 1.8 | M124: 0 | N124: 98.6 | O124: 0.7 | P124: 1.2 | Q124: 01:55:00
B125: 2.3 | C125: 80 | D125: 0.2 | E125: 7.2 | F125: 9.4 | G125: 356 | H125: 1022.8 | I125: 0 | J125: 0 | K125: 0 | L125: 1.8 | M125: 0 | N125: 98.6 | O125: 0.7 | P125: 1.2 | Q125: 01:56:00
B126: 2.2 | C126: 80 | D126: 2.2 | E126: 4.3 | F126: 5.4 | G126: 269 | H126: 1022.7 | I126: 0 | J126: 0 | K126: 0 | L126: 1.8 | M126: 0 | N126: 98.6 | O126: 0.7 | P126: 1.1 | Q126: 01:57:00
B127: 2.2 | C127: 80 | D127: 0 | E127: 7.6 | F127: 9.4 | G127: 278 | H127: 1022.7 | I127: 0 | J127: 0 | K127: 0 | L127: 1.8 | M127: 0 | N127: 98.6 | O127: 0.6 | P127: 1.1 | Q127: 01:58:00
B128: 2.2 | C128: 80 | D128: 2.2 | E128: 2.9 | F128: 3.6 | G128: 344 | H128: 1022.5 | I128: 0 | J128: 0 | K128: 0 | L128: 1.8 | M128: 0 | N128: 98.6 | O128: 0.6 | P128: 1.1 | Q128: 01:59:00
B129: 2.2 | C129: 80 | D129: -0.2 | E129: 7.9 | F129: 14.8 | G129: 296 | H129: 1022.7 | I129: 0 | J129: 0 | K129: 0 | L129: 1.8 | M129: 0 | N129: 98.6 | O129: 0.6 | P129: 1.1 | Q129: 02:00:00
B130: 2.2 | C130: 80 | D130: 0.5 | E130: 6.1 | F130: 9.4 | G130: 302 | H130: 1022.5 | I130: 0 | J130: 0 | K130: 0 | L130: 1.8 | M130: 0 | N130: 98.6 | O130: 0.6 | P130: 1.1 | Q130: 02:01:00
B131: 2.2 | C131: 80 | D131: 0.9 | E131: 5 | F131: 7.2 | G131: 254 | H131: 1022.6 | I131: 0 | J131: 0 | K131: 0 | L131: 1.8 | M131: 0 | N131: 98.6 | O131: 0.6 | P131: 1.1 | Q131: 02:02:00
B132: 2.1 | C132: 80 | D132: 0.2 | E132: 6.5 | F132: 9.4 | G132: 317 | H132: 1022.6 | I132: 0 | J132: 0 | K132: 0 | L132: 1.8 | M132: 0 | N132: 98.6 | O132: 0.6 | P132: 1.1 | Q132: 02:03:00
B133: 2.1 | C133: 80 | D133: -0.5 | E133: 9 | F133: 11.2 | G133: 310 | H133: 1022.7 | I133: 0 | J133: 0 | K133: 0 | L133: 1.8 | M133: 0 | N133: 98.6 | O133: 0.6 | P133: 1 | Q133: 02:04:00
B134: 2.1 | C134: 80 | D134: -1.8 | E134: 14.8 | F134: 16.6 | G134: 272 | H134: 1022.8 | I134: 0 | J134: 0 | K134: 0 | L134: 1.8 | M134: 0 | N134: 98.6 | O134: 0.6 | P134: 1 | Q134: 02:05:00
B135: 2.1 | C135: 80 | D135: 0.1 | E135: 6.8 | F135: 9.4 | G135: 300 | H135: 1022.6 | I135: 0 | J135: 0 | K135: 0 | L135: 1.8 | M135: 0 | N135: 98.6 | O135: 0.6 | P135: 1 | Q135: 02:06:00
B136: 2.1 | C136: 80 | D136: -0.5 | E136: 8.6 | F136: 13 | G136: 286 | H136: 1022.6 | I136: 0 | J136: 0 | K136: 0 | L136: 1.8 | M136: 0 | N136: 98.6 | O136: 0.6 | P136: 1 | Q136: 02:07:00
B137: 2.1 | C137: 81 | D137: 0.1 | E137: 6.8 | F137: 9.4 | G137: 270 | H137: 1022.7 | I137: 0 | J137: 0 | K137: 0 | L137: 1.8 | M137: 0 | N137: 98.6 | O137: 0.6 | P137: 1 | Q137: 02:08:00
B138: 2.1 | C138: 81 | D138: -0.3 | E138: 7.9 | F138: 9.4 | G138: 272 | H138: 1022.9 | I138: 0 | J138: 0 | K138: 0 | L138: 1.8 | M138: 0 | N138: 98.6 | O138: 0.6 | P138: 1 | Q138: 02:09:00
B139: 2.1 | C139: 81 | D139: -0.7 | E139: 9.7 | F139: 13 | G139: 289 | H139: 1022.8 | I139: 0 | J139: 0 | K139: 0 | L139: 1.8 | M139: 0 | N139: 98.6 | O139: 0.6 | P139: 1 | Q139: 02:10:00 | U139: =IF(J139>0,60,"") -> 
B140: 2.1 | C140: 80 | D140: -0.8 | E140: 10.1 | F140: 11.2 | G140: 274 | H140: 1022.9 | I140: 0 | J140: 0 | K140: 0 | L140: 1.8 | M140: 0 | N140: 98.6 | O140: 0.5 | P140: 1 | Q140: 02:11:00
B141: 2.1 | C141: 80 | D141: -1.1 | E141: 11.2 | F141: 16.6 | G141: 286 | H141: 1022.7 | I141: 0 | J141: 0 | K141: 0 | L141: 1.8 | M141: 0 | N141: 98.6 | O141: 0.5 | P141: 1 | Q141: 02:12:00
B142: 2.1 | C142: 80 | D142: -0.5 | E142: 9 | F142: 11.2 | G142: 312 | H142: 1022.6 | I142: 0 | J142: 0 | K142: 0 | L142: 1.8 | M142: 0 | N142: 98.6 | O142: 0.5 | P142: 1 | Q142: 02:13:00
B143: 2.1 | C143: 80 | D143: 0.4 | E143: 6.1 | F143: 7.2 | G143: 286 | H143: 1022.7 | I143: 0 | J143: 0 | K143: 0 | L143: 1.8 | M143: 0 | N143: 98.6 | O143: 0.5 | P143: 1 | Q143: 02:14:00
B144: 2.1 | C144: 80 | D144: 2.1 | E144: 4.7 | F144: 5.4 | G144: 274 | H144: 1022.9 | I144: 0 | J144: 0 | K144: 0 | L144: 1.8 | M144: 0 | N144: 98.6 | O144: 0.6 | P144: 1 | Q144: 02:15:00
B145: 2.1 | C145: 80 | D145: 0.4 | E145: 6.1 | F145: 9.4 | G145: 298 | H145: 1022.6 | I145: 0 | J145: 0 | K145: 0 | L145: 1.8 | M145: 0 | N145: 98.6 | O145: 0.5 | P145: 1 | Q145: 02:16:00
B146: 2.1 | C146: 80 | D146: 2.1 | E146: 4 | F146: 5.4 | G146: 91 | H146: 1022.6 | I146: 0 | J146: 0 | K146: 0 | L146: 1.8 | M146: 0 | N146: 98.6 | O146: 0.5 | P146: 1 | Q146: 02:17:00
B147: 2.1 | C147: 80 | D147: 0 | E147: 7.2 | F147: 9.4 | G147: 315 | H147: 1022.8 | I147: 0 | J147: 0 | K147: 0 | L147: 1.8 | M147: 0 | N147: 98.6 | O147: 0.5 | P147: 1 | Q147: 02:18:00
B148: 2.1 | C148: 80 | D148: 0.2 | E148: 6.5 | F148: 7.2 | G148: 345 | H148: 1022.8 | I148: 0 | J148: 0 | K148: 0 | L148: 1.8 | M148: 0 | N148: 98.6 | O148: 0.5 | P148: 1 | Q148: 02:19:00
B149: 2.1 | C149: 80 | D149: -0.3 | E149: 8.3 | F149: 11.2 | G149: 286 | H149: 1022.8 | I149: 0 | J149: 0 | K149: 0 | L149: 1.8 | M149: 0 | N149: 98.6 | O149: 0.5 | P149: 1 | Q149: 02:20:00
B150: 2.1 | C150: 80 | D150: -0.8 | E150: 10.1 | F150: 11.2 | G150: 326 | H150: 1022.8 | I150: 0 | J150: 0 | K150: 0 | L150: 1.8 | M150: 0 | N150: 98.6 | O150: 0.5 | P150: 1 | Q150: 02:21:00
B151: 2.1 | C151: 80 | D151: 0.4 | E151: 6.1 | F151: 11.2 | G151: 320 | H151: 1022.7 | I151: 0 | J151: 0 | K151: 0 | L151: 1.8 | M151: 0 | N151: 98.6 | O151: 0.5 | P151: 1 | Q151: 02:22:00
B152: 2.2 | C152: 80 | D152: 0.3 | E152: 6.5 | F152: 7.2 | G152: 313 | H152: 1022.7 | I152: 0 | J152: 0 | K152: 0 | L152: 1.8 | M152: 0 | N152: 98.6 | O152: 0.5 | P152: 1 | Q152: 02:23:00
B153: 2.1 | C153: 80 | D153: 2.1 | E153: 4 | F153: 7.2 | G153: 319 | H153: 1022.6 | I153: 0 | J153: 0 | K153: 0 | L153: 1.8 | M153: 0 | N153: 98.6 | O153: 0.5 | P153: 1 | Q153: 02:24:00
B154: 2.1 | C154: 80 | D154: 0.2 | E154: 6.5 | F154: 7.2 | G154: 306 | H154: 1022.7 | I154: 0 | J154: 0 | K154: 0 | L154: 1.8 | M154: 0 | N154: 98.6 | O154: 0.5 | P154: 1 | Q154: 02:25:00
B155: 2.1 | C155: 80 | D155: 0 | E155: 7.2 | F155: 9.4 | G155: 298 | H155: 1022.8 | I155: 0 | J155: 0 | K155: 0 | L155: 1.8 | M155: 0 | N155: 98.6 | O155: 0.5 | P155: 1 | Q155: 02:26:00
B156: 2.1 | C156: 80 | D156: 2.1 | E156: 2.2 | F156: 3.6 | G156: 318 | H156: 1022.8 | I156: 0 | J156: 0 | K156: 0 | L156: 1.8 | M156: 0 | N156: 98.6 | O156: 0.5 | P156: 1 | Q156: 02:27:00
B157: 2.1 | C157: 80 | D157: 0.6 | E157: 5.4 | F157: 9.4 | G157: 322 | H157: 1022.9 | I157: 0 | J157: 0 | K157: 0 | L157: 1.8 | M157: 0 | N157: 98.6 | O157: 0.5 | P157: 1 | Q157: 02:28:00
B158: 2.1 | C158: 80 | D158: -1 | E158: 10.8 | F158: 13 | G158: 306 | H158: 1022.7 | I158: 0 | J158: 0 | K158: 0 | L158: 1.8 | M158: 0 | N158: 98.6 | O158: 0.5 | P158: 1 | Q158: 02:29:00
B159: 2.1 | C159: 80 | D159: 2.1 | E159: 2.9 | F159: 5.4 | G159: 341 | H159: 1022.5 | I159: 0 | J159: 0 | K159: 0 | L159: 1.8 | M159: 0 | N159: 98.6 | O159: 0.5 | P159: 1 | Q159: 02:30:00
B160: 2.1 | C160: 80 | D160: 2.1 | E160: 4.7 | F160: 7.2 | G160: 310 | H160: 1022.8 | I160: 0 | J160: 0 | K160: 0 | L160: 1.8 | M160: 0 | N160: 98.6 | O160: 0.5 | P160: 1 | Q160: 02:31:00
B161: 2.1 | C161: 80 | D161: -0.7 | E161: 9.7 | F161: 13 | G161: 62 | H161: 1022.7 | I161: 0 | J161: 0 | K161: 0 | L161: 1.8 | M161: 0 | N161: 98.6 | O161: 0.5 | P161: 1 | Q161: 02:32:00
B162: 2.1 | C162: 80 | D162: 0.2 | E162: 6.5 | F162: 11.2 | G162: 301 | H162: 1022.6 | I162: 0 | J162: 0 | K162: 0 | L162: 1.8 | M162: 0 | N162: 98.6 | O162: 0.5 | P162: 1 | Q162: 02:33:00
B163: 2.1 | C163: 80 | D163: 0.4 | E163: 6.1 | F163: 11.2 | G163: 324 | H163: 1022.6 | I163: 0 | J163: 0 | K163: 0 | L163: 1.8 | M163: 0 | N163: 98.6 | O163: 0.5 | P163: 1 | Q163: 02:34:00
B164: 2.1 | C164: 80 | D164: -0.7 | E164: 9.4 | F164: 11.2 | G164: 287 | H164: 1022.7 | I164: 0 | J164: 0 | K164: 0 | L164: 1.8 | M164: 0 | N164: 98.6 | O164: 0.5 | P164: 0.9 | Q164: 02:35:00
B165: 2.1 | C165: 80 | D165: 2.1 | E165: 4 | F165: 7.2 | G165: 282 | H165: 1022.6 | I165: 0 | J165: 0 | K165: 0 | L165: 1.8 | M165: 0 | N165: 98.6 | O165: 0.5 | P165: 1 | Q165: 02:36:00
B166: 2.1 | C166: 80 | D166: -1.5 | E166: 13 | F166: 18.4 | G166: 265 | H166: 1022.7 | I166: 0 | J166: 0 | K166: 0 | L166: 1.8 | M166: 0 | N166: 98.6 | O166: 0.5 | P166: 1 | Q166: 02:37:00
B167: 2.1 | C167: 80 | D167: 0 | E167: 7.2 | F167: 9.4 | G167: 283 | H167: 1022.5 | I167: 0 | J167: 0 | K167: 0 | L167: 1.8 | M167: 0 | N167: 98.6 | O167: 0.5 | P167: 1 | Q167: 02:38:00
B168: 2.1 | C168: 80 | D168: 0.6 | E168: 5.4 | F168: 7.2 | G168: 347 | H168: 1022.8 | I168: 0 | J168: 0 | K168: 0 | L168: 1.8 | M168: 0 | N168: 98.6 | O168: 0.5 | P168: 1 | Q168: 02:39:00
B169: 2.1 | C169: 80 | D169: 0.5 | E169: 5.8 | F169: 9.4 | G169: 256 | H169: 1022.8 | I169: 0 | J169: 0 | K169: 0 | L169: 1.8 | M169: 0 | N169: 98.6 | O169: 0.5 | P169: 1 | Q169: 02:40:00
B170: 2.1 | C170: 80 | D170: 0.2 | E170: 6.5 | F170: 11.2 | G170: 294 | H170: 1022.6 | I170: 0 | J170: 0 | K170: 0 | L170: 1.8 | M170: 0 | N170: 98.6 | O170: 0.5 | P170: 1 | Q170: 02:41:00
B171: 2.1 | C171: 80 | D171: 0.6 | E171: 5.4 | F171: 7.2 | G171: 309 | H171: 1022.7 | I171: 0 | J171: 0 | K171: 0 | L171: 1.8 | M171: 0 | N171: 98.6 | O171: 0.6 | P171: 1 | Q171: 02:42:00
B172: 2.1 | C172: 80 | D172: -0.2 | E172: 7.6 | F172: 13 | G172: 276 | H172: 1022.8 | I172: 0 | J172: 0 | K172: 0 | L172: 1.8 | M172: 0 | N172: 98.6 | O172: 0.6 | P172: 1 | Q172: 02:43:00
B173: 2.1 | C173: 80 | D173: 0.2 | E173: 6.5 | F173: 7.2 | G173: 274 | H173: 1022.8 | I173: 0 | J173: 0 | K173: 0 | L173: 1.8 | M173: 0 | N173: 98.6 | O173: 0.6 | P173: 1 | Q173: 02:44:00
B174: 2.1 | C174: 80 | D174: 2.1 | E174: 4.3 | F174: 7.2 | G174: 331 | H174: 1022.7 | I174: 0 | J174: 0 | K174: 0 | L174: 1.8 | M174: 0 | N174: 98.6 | O174: 0.6 | P174: 0.9 | Q174: 02:45:00
B175: 2.1 | C175: 80 | D175: 0 | E175: 7.2 | F175: 9.4 | G175: 303 | H175: 1022.7 | I175: 0 | J175: 0 | K175: 0 | L175: 1.8 | M175: 0 | N175: 98.6 | O175: 0.6 | P175: 0.9 | Q175: 02:46:00
B176: 2.1 | C176: 80 | D176: -0.3 | E176: 7.9 | F176: 11.2 | G176: 338 | H176: 1022.7 | I176: 0 | J176: 0 | K176: 0 | L176: 1.8 | M176: 0 | N176: 98.6 | O176: 0.6 | P176: 0.9 | Q176: 02:47:00
B177: 2.1 | C177: 80 | D177: 2.1 | E177: 2.5 | F177: 3.6 | G177: 281 | H177: 1022.7 | I177: 0 | J177: 0 | K177: 0 | L177: 1.8 | M177: 0 | N177: 98.6 | O177: 0.6 | P177: 0.9 | Q177: 02:48:00
B178: 2.1 | C178: 80 | D178: 2.1 | E178: 4 | F178: 5.4 | G178: 354 | H178: 1022.7 | I178: 0 | J178: 0 | K178: 0 | L178: 1.8 | M178: 0 | N178: 98.6 | O178: 0.6 | P178: 0.9 | Q178: 02:49:00
B179: 2.1 | C179: 80 | D179: 0.2 | E179: 6.5 | F179: 9.4 | G179: 318 | H179: 1023 | I179: 0 | J179: 0 | K179: 0 | L179: 1.8 | M179: 0 | N179: 98.6 | O179: 0.6 | P179: 0.9 | Q179: 02:50:00
B180: 2.1 | C180: 80 | D180: 2.1 | E180: 4.7 | F180: 5.4 | G180: 354 | H180: 1022.6 | I180: 0 | J180: 0 | K180: 0 | L180: 1.8 | M180: 0 | N180: 98.6 | O180: 0.6 | P180: 0.9 | Q180: 02:51:00
B181: 2.1 | C181: 80 | D181: -0.3 | E181: 8.3 | F181: 11.2 | G181: 303 | H181: 1022.8 | I181: 0 | J181: 0 | K181: 0 | L181: 1.8 | M181: 0 | N181: 98.6 | O181: 0.6 | P181: 0.9 | Q181: 02:52:00
B182: 2.1 | C182: 80 | D182: -1.5 | E182: 13 | F182: 14.8 | G182: 290 | H182: 1022.7 | I182: 0 | J182: 0 | K182: 0 | L182: 1.8 | M182: 0 | N182: 98.6 | O182: 0.6 | P182: 0.9 | Q182: 02:53:00
B183: 2.1 | C183: 80 | D183: 2.1 | E183: 2.9 | F183: 3.6 | G183: 28 | H183: 1022.8 | I183: 0 | J183: 0 | K183: 0 | L183: 1.8 | M183: 0 | N183: 98.6 | O183: 0.6 | P183: 0.8 | Q183: 02:54:00
B184: 2.1 | C184: 80 | D184: 2.1 | E184: 4 | F184: 5.4 | G184: 270 | H184: 1022.9 | I184: 0 | J184: 0 | K184: 0 | L184: 1.8 | M184: 0 | N184: 98.6 | O184: 0.5 | P184: 0.9 | Q184: 02:55:00
B185: 2.1 | C185: 80 | D185: 2.1 | E185: 2.9 | F185: 5.4 | G185: 2 | H185: 1022.9 | I185: 0 | J185: 0 | K185: 0 | L185: 1.8 | M185: 0 | N185: 98.6 | O185: 0.6 | P185: 0.8 | Q185: 02:56:00
B186: 2.1 | C186: 80 | D186: 0.2 | E186: 6.5 | F186: 9.4 | G186: 318 | H186: 1022.9 | I186: 0 | J186: 0 | K186: 0 | L186: 1.8 | M186: 0 | N186: 98.6 | O186: 0.5 | P186: 0.9 | Q186: 02:57:00
B187: 2.1 | C187: 80 | D187: 2.1 | E187: 2.2 | F187: 3.6 | G187: 46 | H187: 1023.1 | I187: 0 | J187: 0 | K187: 0 | L187: 1.8 | M187: 0 | N187: 98.6 | O187: 0.6 | P187: 0.8 | Q187: 02:58:00
B188: 2.1 | C188: 80 | D188: 0.8 | E188: 5 | F188: 7.2 | G188: 335 | H188: 1022.8 | I188: 0 | J188: 0 | K188: 0 | L188: 1.8 | M188: 0 | N188: 98.6 | O188: 0.5 | P188: 0.8 | Q188: 02:59:00
B189: 2.1 | C189: 80 | D189: -1.4 | E189: 12.6 | F189: 18.4 | G189: 317 | H189: 1023.1 | I189: 0 | J189: 0 | K189: 0 | L189: 1.8 | M189: 0 | N189: 98.6 | O189: 0.5 | P189: 0.8 | Q189: 03:00:00
B190: 2.1 | C190: 80 | D190: 0.2 | E190: 6.5 | F190: 9.4 | G190: 284 | H190: 1022.7 | I190: 0 | J190: 0 | K190: 0 | L190: 1.8 | M190: 0 | N190: 98.6 | O190: 0.5 | P190: 0.8 | Q190: 03:01:00
B191: 2.1 | C191: 80 | D191: 2.1 | E191: 3.6 | F191: 5.4 | G191: 287 | H191: 1022.7 | I191: 0 | J191: 0 | K191: 0 | L191: 1.8 | M191: 0 | N191: 98.6 | O191: 0.5 | P191: 0.8 | Q191: 03:02:00
B192: 2.1 | C192: 80 | D192: 0.1 | E192: 6.8 | F192: 9.4 | G192: 320 | H192: 1022.8 | I192: 0 | J192: 0 | K192: 0 | L192: 1.8 | M192: 0 | N192: 98.6 | O192: 0.5 | P192: 0.8 | Q192: 03:03:00
B193: 2.1 | C193: 80 | D193: 2.1 | E193: 4.7 | F193: 7.2 | G193: 342 | H193: 1022.9 | I193: 0 | J193: 0 | K193: 0 | L193: 1.8 | M193: 0 | N193: 98.6 | O193: 0.5 | P193: 0.8 | Q193: 03:04:00
B194: 2.1 | C194: 80 | D194: 0.8 | E194: 5 | F194: 7.2 | G194: 309 | H194: 1022.8 | I194: 0 | J194: 0 | K194: 0 | L194: 1.8 | M194: 0 | N194: 98.6 | O194: 0.5 | P194: 0.8 | Q194: 03:05:00
B195: 2.1 | C195: 80 | D195: -0.3 | E195: 7.9 | F195: 11.2 | G195: 286 | H195: 1022.9 | I195: 0 | J195: 0 | K195: 0 | L195: 1.8 | M195: 0 | N195: 98.6 | O195: 0.5 | P195: 0.8 | Q195: 03:06:00
B196: 2.1 | C196: 80 | D196: 0 | E196: 7.2 | F196: 11.2 | G196: 245 | H196: 1022.8 | I196: 0 | J196: 0 | K196: 0 | L196: 1.8 | M196: 0 | N196: 98.6 | O196: 0.5 | P196: 0.8 | Q196: 03:07:00
B197: 2.1 | C197: 80 | D197: -0.7 | E197: 9.4 | F197: 13 | G197: 289 | H197: 1022.9 | I197: 0 | J197: 0 | K197: 0 | L197: 1.8 | M197: 0 | N197: 98.6 | O197: 0.5 | P197: 0.8 | Q197: 03:08:00
B198: 2.2 | C198: 80 | D198: 0.2 | E198: 6.8 | F198: 9.4 | G198: 279 | H198: 1022.6 | I198: 0 | J198: 0 | K198: 0 | L198: 1.8 | M198: 0 | N198: 98.6 | O198: 0.6 | P198: 0.8 | Q198: 03:09:00
B199: 2.2 | C199: 80 | D199: 0.1 | E199: 7.2 | F199: 9.4 | G199: 286 | H199: 1022.8 | I199: 0 | J199: 0 | K199: 0 | L199: 1.8 | M199: 0 | N199: 98.6 | O199: 0.6 | P199: 0.8 | Q199: 03:10:00
B200: 2.1 | C200: 80 | D200: 2.1 | E200: 4.7 | F200: 5.4 | G200: 271 | H200: 1022.8 | I200: 0 | J200: 0 | K200: 0 | L200: 1.8 | M200: 0 | N200: 98.6 | O200: 0.6 | P200: 0.9 | Q200: 03:11:00
... 801 more rows

Sheet AVRIL_2022
BB1: La Rochelle | BC1: http://www.meteociel.fr/climatologie/villes.php?code=7316&mois=4&annee=2022 | BN1: Ephéméride | BO1: http://www.ephemeride.com/calendrier/solaire/19/horaires-du-soleil.html
AD3: =$C$5 -> Avril_2022 | AG3: Hauteur de pluie en mm | AK3: Temps de précipitations par 1/4 de journée | AU3: =$C$5 -> Avril_2022 | AX3: Chaleur solaire | BB3: Marées | BC3: https://marine.meteoconsult.fr/meteo-marine/horaires-maree-la-tranche-sur-mer-1083-0.php
C5: Avril_2022 | F5: Mise à jour | H5: le | J5: =NOW() -> 2022-04-02T16:44:37.840 | U5: =C5 -> Avril_2022 | X5: =NOW() -> 2022-04-02T16:44:37.840 | AD5: Mise à jour | AG5: =SUM($AG$11:$AG$59) -> 0 | AI5: =SUM($AI$11:$AI$71) -> 0 | AK5: =SUM(AK$11:AK$71) -> 0 | AM5: =SUM(AM$11:AM$71) -> 0 | AO5: =SUM(AO$11:AO$71) -> 0 | AQ5: =SUM(AQ$11:AQ$71) -> 0 | AU5: Mise à jour | AX5: =SUM(AX$11:AX$59) -> 0.4875 | BB5: T° de l'eau | BC5: https://fr.surf-forecast.com/breaks/La-Tranchesur-Mer/seatemp | BN5: meteofloralies | BO5: https://www.wunderground.com/dashboard/pws/ILATRA6
C7: Températures | F7: =MIN(F11:F59) -> -2.1 | H7: =VLOOKUP($F$7,$F$11:$V$71,17,0) -> 2022-04-01 | J7: =MIN($J$11:$J$71) -> 1.8 | L7: =VLOOKUP($J$7,$J$11:$V$71,13,0) -> 2022-04-01 | N7: =MAX(N11:N59) -> 10 | P7: =VLOOKUP($N$7,$N$11:$V$71,9,0) -> 2022-04-01 | U7: Mise à jour | X7: Maxi | AD7: =TODAY() -> 2022-04-02 | AG7: =VLOOKUP($AG$9,$AG$11:$AV$71,16,0) -> 2022-04-01 | AI7: =VLOOKUP($AI$9,$AI$11:$AV$71,14,0) -> 2022-04-01 | AK7: Pluie AM | AM7: Pluie AM | AO7: Pluie AP | AQ7: Pluie AP | AU7: =TODAY() -> 2022-04-02 | AX7: =VLOOKUP($AX$9,$AX$11:$BB$71,5,0) -> 2022-04-01
F9: Ressentie | H9: =VLOOKUP($F$7,$H$11:$P$71,3,0) ->  | J9: Mini | L9: =VLOOKUP($J$7,$J$11:$L$71,3,0) -> 04:34:00 | N9: Maxi | P9: =VLOOKUP($N$7,$N$11:$P$71,3,0) -> 16:06:00 | U9: Vitesse du vent | X9: =MAX($X$11:$X$71) -> 42.1 | Z9: =VLOOKUP($X$9,$X$11:$AE$71,8,0) -> 2022-04-01 | AD9: =BB9+AG5 -> 98.6 | AE9: Année | AG9: =MAX($AG$11:$AG$59) -> 0 | AI9: =MAX($AI$11:AI$71) -> 0 | AK9: de 0 à 6h59 | AM9: 7h à 11h59 | AO9: 12h à 18h59 | AQ9: 19h à 23h59 | AU9: Soleil de l'Année | AV9: =BC9+AX5 -> 16.8875 | AX9: =MAX($AX$11:$AX$71) -> 0.4875 | BB9: 98.6 | BC9: 16.4
C11: =PROPER(TEXT(D11,"JJJJ")) -> Vendredi | D11: 2022-04-01 | F11: -2.1 | H11: 0.2180555556 | J11: 1.8 | L11: 0.1902777778 | N11: 10 | P11: 0.6708333333 | U11: =$C11 -> Vendredi | V11: =$D11 -> 2022-04-01 | X11: 42.1 | Z11: 19:41:00 | AD11: =$C11 -> Vendredi | AE11: =$D11 -> 2022-04-01 | AG11: 0 | AI11: 00:00:00 | AK11: 00:00:00 | AM11: 00:00:00 | AO11: 00:00:00 | AQ11: 00:00:00 | AU11: =$C11 -> Vendredi | AV11: =$D11 -> 2022-04-01 | AX11: 11:42:00 | BA11: 1 | BB11: =D11 -> 2022-04-01 | BC11: =$C11 -> Vendredi
C13: =PROPER(TEXT(D13,"JJJJ")) -> Samedi | D13: =$D11+1 -> 2022-04-02 | U13: =$C13 -> Samedi | V13: =$D13 -> 2022-04-02 | AD13: =$C13 -> Samedi | AE13: =$D13 -> 2022-04-02 | AU13: =$C13 -> Samedi | AV13: =$D13 -> 2022-04-02 | BA13: 2 | BB13: =D13 -> 2022-04-02 | BC13: =$C13 -> Samedi
C15: =PROPER(TEXT(D15,"JJJJ")) -> Dimanche | D15: =$D13+1 -> 2022-04-03 | U15: =$C15 -> Dimanche | V15: =$D15 -> 2022-04-03 | AD15: =$C15 -> Dimanche | AE15: =$D15 -> 2022-04-03 | AU15: =$C15 -> Dimanche | AV15: =$D15 -> 2022-04-03 | BA15: 3 | BB15: =D15 -> 2022-04-03 | BC15: =$C15 -> Dimanche
C17: =PROPER(TEXT(D17,"JJJJ")) -> Lundi | D17: =$D15+1 -> 2022-04-04 | U17: =$C17 -> Lundi | V17: =$D17 -> 2022-04-04 | AD17: =$C17 -> Lundi | AE17: =$D17 -> 2022-04-04 | AU17: =$C17 -> Lundi | AV17: =$D17 -> 2022-04-04 | BA17: 4 | BB17: =D17 -> 2022-04-04 | BC17: =$C17 -> Lundi
C19: =PROPER(TEXT(D19,"JJJJ")) -> Mardi | D19: =$D17+1 -> 2022-04-05 | U19: =$C19 -> Mardi | V19: =$D19 -> 2022-04-05 | AD19: =$C19 -> Mardi | AE19: =$D19 -> 2022-04-05 | AU19: =$C19 -> Mardi | AV19: =$D19 -> 2022-04-05 | BA19: 5 | BB19: =D19 -> 2022-04-05 | BC19: =$C19 -> Mardi
C21: =PROPER(TEXT(D21,"JJJJ")) -> Mercredi | D21: =$D19+1 -> 2022-04-06 | U21: =$C21 -> Mercredi | V21: =$D21 -> 2022-04-06 | AD21: =$C21 -> Mercredi | AE21: =$D21 -> 2022-04-06 | AU21: =$C21 -> Mercredi | AV21: =$D21 -> 2022-04-06 | BA21: 6 | BB21: =D21 -> 2022-04-06 | BC21: =$C21 -> Mercredi
C23: =PROPER(TEXT(D23,"JJJJ")) -> Jeudi | D23: =$D21+1 -> 2022-04-07 | U23: =$C23 -> Jeudi | V23: =$D23 -> 2022-04-07 | AD23: =$C23 -> Jeudi | AE23: =$D23 -> 2022-04-07 | AU23: =$C23 -> Jeudi | AV23: =$D23 -> 2022-04-07 | BA23: 7 | BB23: =D23 -> 2022-04-07 | BC23: =$C23 -> Jeudi
C25: =PROPER(TEXT(D25,"JJJJ")) -> Vendredi | D25: =$D23+1 -> 2022-04-08 | U25: =$C25 -> Vendredi | V25: =$D25 -> 2022-04-08 | AD25: =$C25 -> Vendredi | AE25: =$D25 -> 2022-04-08 | AU25: =$C25 -> Vendredi | AV25: =$D25 -> 2022-04-08 | BA25: 8 | BB25: =D25 -> 2022-04-08 | BC25: =$C25 -> Vendredi
C27: =PROPER(TEXT(D27,"JJJJ")) -> Samedi | D27: =$D25+1 -> 2022-04-09 | U27: =$C27 -> Samedi | V27: =$D27 -> 2022-04-09 | AD27: =$C27 -> Samedi | AE27: =$D27 -> 2022-04-09 | AU27: =$C27 -> Samedi | AV27: =$D27 -> 2022-04-09 | BA27: 9 | BB27: =D27 -> 2022-04-09 | BC27: =$C27 -> Samedi
C29: =PROPER(TEXT(D29,"JJJJ")) -> Dimanche | D29: =$D27+1 -> 2022-04-10 | U29: =$C29 -> Dimanche | V29: =$D29 -> 2022-04-10 | AD29: =$C29 -> Dimanche | AE29: =$D29 -> 2022-04-10 | AU29: =$C29 -> Dimanche | AV29: =$D29 -> 2022-04-10 | BA29: 10 | BB29: =D29 -> 2022-04-10 | BC29: =$C29 -> Dimanche
C31: =PROPER(TEXT(D31,"JJJJ")) -> Lundi | D31: =$D29+1 -> 2022-04-11 | U31: =$C31 -> Lundi | V31: =$D31 -> 2022-04-11 | AD31: =$C31 -> Lundi | AE31: =$D31 -> 2022-04-11 | AU31: =$C31 -> Lundi | AV31: =$D31 -> 2022-04-11 | BA31: 11 | BB31: =D31 -> 2022-04-11 | BC31: =$C31 -> Lundi
C33: =PROPER(TEXT(D33,"JJJJ")) -> Mardi | D33: =$D31+1 -> 2022-04-12 | U33: =$C33 -> Mardi | V33: =$D33 -> 2022-04-12 | AD33: =$C33 -> Mardi | AE33: =$D33 -> 2022-04-12 | AU33: =$C33 -> Mardi | AV33: =$D33 -> 2022-04-12 | BA33: 12 | BB33: =D33 -> 2022-04-12 | BC33: =$C33 -> Mardi
C35: =PROPER(TEXT(D35,"JJJJ")) -> Mercredi | D35: =$D33+1 -> 2022-04-13 | U35: =$C35 -> Mercredi | V35: =$D35 -> 2022-04-13 | AD35: =$C35 -> Mercredi | AE35: =$D35 -> 2022-04-13 | AU35: =$C35 -> Mercredi | AV35: =$D35 -> 2022-04-13 | BA35: 13 | BB35: =D35 -> 2022-04-13 | BC35: =$C35 -> Mercredi
C37: =PROPER(TEXT(D37,"JJJJ")) -> Jeudi | D37: =$D35+1 -> 2022-04-14 | U37: =$C37 -> Jeudi | V37: =$D37 -> 2022-04-14 | AD37: =$C37 -> Jeudi | AE37: =$D37 -> 2022-04-14 | AU37: =$C37 -> Jeudi | AV37: =$D37 -> 2022-04-14 | BA37: 14 | BB37: =D37 -> 2022-04-14 | BC37: =$C37 -> Jeudi
C39: =PROPER(TEXT(D39,"JJJJ")) -> Vendredi | D39: =$D37+1 -> 2022-04-15 | U39: =$C39 -> Vendredi | V39: =$D39 -> 2022-04-15 | AD39: =$C39 -> Vendredi | AE39: =$D39 -> 2022-04-15 | AU39: =$C39 -> Vendredi | AV39: =$D39 -> 2022-04-15 | BA39: 15 | BB39: =D39 -> 2022-04-15 | BC39: =$C39 -> Vendredi
C41: =PROPER(TEXT(D41,"JJJJ")) -> Samedi | D41: =$D39+1 -> 2022-04-16 | U41: =$C41 -> Samedi | V41: =$D41 -> 2022-04-16 | AD41: =$C41 -> Samedi | AE41: =$D41 -> 2022-04-16 | AU41: =$C41 -> Samedi | AV41: =$D41 -> 2022-04-16 | BA41: 16 | BB41: =D41 -> 2022-04-16 | BC41: =$C41 -> Samedi
C43: =PROPER(TEXT(D43,"JJJJ")) -> Dimanche | D43: =$D41+1 -> 2022-04-17 | U43: =$C43 -> Dimanche | V43: =$D43 -> 2022-04-17 | AD43: =$C43 -> Dimanche | AE43: =$D43 -> 2022-04-17 | AU43: =$C43 -> Dimanche | AV43: =$D43 -> 2022-04-17 | BA43: 17 | BB43: =D43 -> 2022-04-17 | BC43: =$C43 -> Dimanche
C45: =PROPER(TEXT(D45,"JJJJ")) -> Lundi | D45: =$D43+1 -> 2022-04-18 | U45: =$C45 -> Lundi | V45: =$D45 -> 2022-04-18 | AD45: =$C45 -> Lundi | AE45: =$D45 -> 2022-04-18 | AU45: =$C45 -> Lundi | AV45: =$D45 -> 2022-04-18 | BA45: 18 | BB45: =D45 -> 2022-04-18 | BC45: =$C45 -> Lundi
C47: =PROPER(TEXT(D47,"JJJJ")) -> Mardi | D47: =$D45+1 -> 2022-04-19 | U47: =$C47 -> Mardi | V47: =$D47 -> 2022-04-19 | AD47: =$C47 -> Mardi | AE47: =$D47 -> 2022-04-19 | AU47: =$C47 -> Mardi | AV47: =$D47 -> 2022-04-19 | BA47: 19 | BB47: =D47 -> 2022-04-19 | BC47: =$C47 -> Mardi
C49: =PROPER(TEXT(D49,"JJJJ")) -> Mercredi | D49: =$D47+1 -> 2022-04-20 | U49: =$C49 -> Mercredi | V49: =$D49 -> 2022-04-20 | AD49: =$C49 -> Mercredi | AE49: =$D49 -> 2022-04-20 | AU49: =$C49 -> Mercredi | AV49: =$D49 -> 2022-04-20 | BA49: 20 | BB49: =D49 -> 2022-04-20 | BC49: =$C49 -> Mercredi
C51: =PROPER(TEXT(D51,"JJJJ")) -> Jeudi | D51: =$D49+1 -> 2022-04-21 | U51: =$C51 -> Jeudi | V51: =$D51 -> 2022-04-21 | AD51: =$C51 -> Jeudi | AE51: =$D51 -> 2022-04-21 | AU51: =$C51 -> Jeudi | AV51: =$D51 -> 2022-04-21 | BA51: 21 | BB51: =D51 -> 2022-04-21 | BC51: =$C51 -> Jeudi
C53: =PROPER(TEXT(D53,"JJJJ")) -> Vendredi | D53: =$D51+1 -> 2022-04-22 | U53: =$C53 -> Vendredi | V53: =$D53 -> 2022-04-22 | AD53: =$C53 -> Vendredi | AE53: =$D53 -> 2022-04-22 | AU53: =$C53 -> Vendredi | AV53: =$D53 -> 2022-04-22 | BA53: 22 | BB53: =D53 -> 2022-04-22 | BC53: =$C53 -> Vendredi
C55: =PROPER(TEXT(D55,"JJJJ")) -> Samedi | D55: =$D53+1 -> 2022-04-23 | U55: =$C55 -> Samedi | V55: =$D55 -> 2022-04-23 | AD55: =$C55 -> Samedi | AE55: =$D55 -> 2022-04-23 | AU55: =$C55 -> Samedi | AV55: =$D55 -> 2022-04-23 | BA55: 23 | BB55: =D55 -> 2022-04-23 | BC55: =$C55 -> Samedi
C57: =PROPER(TEXT(D57,"JJJJ")) -> Dimanche | D57: =$D55+1 -> 2022-04-24 | U57: =$C57 -> Dimanche | V57: =$D57 -> 2022-04-24 | AD57: =$C57 -> Dimanche | AE57: =$D57 -> 2022-04-24 | AU57: =$C57 -> Dimanche | AV57: =$D57 -> 2022-04-24 | BA57: 24 | BB57: =D57 -> 2022-04-24 | BC57: =$C57 -> Dimanche
C59: =PROPER(TEXT(D59,"JJJJ")) -> Lundi | D59: =$D57+1 -> 2022-04-25 | U59: =$C59 -> Lundi | V59: =$D59 -> 2022-04-25 | AD59: =$C59 -> Lundi | AE59: =$D59 -> 2022-04-25 | AU59: =$C59 -> Lundi | AV59: =$D59 -> 2022-04-25 | BA59: 25 | BB59: =D59 -> 2022-04-25 | BC59: =$C59 -> Lundi
C61: =PROPER(TEXT(D61,"JJJJ")) -> Mardi | D61: =$D59+1 -> 2022-04-26 | U61: =$C61 -> Mardi | V61: =$D61 -> 2022-04-26 | AD61: =$C61 -> Mardi | AE61: =$D61 -> 2022-04-26 | AU61: =$C61 -> Mardi | AV61: =$D61 -> 2022-04-26 | BA61: 26 | BB61: =D61 -> 2022-04-26 | BC61: =$C61 -> Mardi
C63: =PROPER(TEXT(D63,"JJJJ")) -> Mercredi | D63: =$D61+1 -> 2022-04-27 | U63: =$C63 -> Mercredi | V63: =$D63 -> 2022-04-27 | AD63: =$C63 -> Mercredi | AE63: =$D63 -> 2022-04-27 | AU63: =$C63 -> Mercredi | AV63: =$D63 -> 2022-04-27 | BA63: 27 | BB63: =D63 -> 2022-04-27 | BC63: =$C63 -> Mercredi
C65: =PROPER(TEXT(D65,"JJJJ")) -> Jeudi | D65: =$D63+1 -> 2022-04-28 | U65: =$C65 -> Jeudi | V65: =$D65 -> 2022-04-28 | AD65: =$C65 -> Jeudi | AE65: =$D65 -> 2022-04-28 | AU65: =$C65 -> Jeudi | AV65: =$D65 -> 2022-04-28 | BA65: 28 | BB65: =D65 -> 2022-04-28 | BC65: =$C65 -> Jeudi
C67: =PROPER(TEXT(D67,"JJJJ")) -> Vendredi | D67: =$D65+1 -> 2022-04-29 | U67: =$C67 -> Vendredi | V67: =$D67 -> 2022-04-29 | AD67: =$C67 -> Vendredi | AE67: =$D67 -> 2022-04-29 | AU67: =$C67 -> Vendredi | AV67: =$D67 -> 2022-04-29 | BA67: 29 | BB67: =D67 -> 2022-04-29 | BC67: =$C67 -> Vendredi
C69: =PROPER(TEXT(D69,"JJJJ")) -> Samedi | D69: =$D67+1 -> 2022-04-30 | U69: =$C69 -> Samedi | V69: =$D69 -> 2022-04-30 | AD69: =$C69 -> Samedi | AE69: =$D69 -> 2022-04-30 | AU69: =$C69 -> Samedi | AV69: =$D69 -> 2022-04-30 | BA69: 30 | BB69: =D69 -> 2022-04-30 | BC69: =$C69 -> Samedi
BF75: J7 | BH75: N7 | BJ75: X9 | BL75: AG5 | BN75: AX5
BL77: =SUM(BL81:BL83) -> 96.8 | BN77: =SUM(BN81:BN83) -> 16.4
BE79: T° Mini | BF79: =MIN(BF81:BF101) -> -3.5 | BG79: T° Maxi | BH79: =MAX(BH81:BH101) -> 22.1 | BI79: Vent | BJ79: =MAX(BJ81:BJ101) -> 57.5 | BK79: Pluie | BL79: =MAX(BL81:BL101) -> 41.1 | BM79: Soleil | BN79: =MAX(BN81:BN101) -> 7.016666667
BE81: Janvier | BF81: -3.5 | BG81: =BE81 -> Janvier | BH81: 13.2 | BI81: =BE81 -> Janvier | BJ81: 57.5 | BK81: =BE81 -> Janvier | BL81: 41.1 | BM81: =BE81 -> Janvier | BN81: 4.416666667
BE82: Février | BF82: -2.1 | BG82: =BE82 -> Février | BH82: 16.6 | BI82: =BE82 -> Février | BJ82: 47.9 | BK82: =BE82 -> Février | BL82: 23.4 | BM82: =BE82 -> Février | BN82: 4.966666667
BE83: Mars | BF83: -0.2 | BG83: =BE83 -> Mars | BH83: 22.1 | BI83: =BE83 -> Mars | BJ83: 43.69 | BK83: =BE83 -> Mars | BL83: 32.3 | BM83: =BE83 -> Mars | BN83: 7.016666667
BE84: Avril | BF84: =J7 -> 1.8 | BG84: =BE84 -> Avril | BH84: =N7 -> 10 | BI84: =BE84 -> Avril | BJ84: =X9 -> 42.1 | BK84: =BE84 -> Avril | BL84: =AG5 -> 0 | BM84: =BE84 -> Avril | BN84: =AX5 -> 0.4875

Sheet MINI-MAXI
A1: =AVRIL_2022!C5 -> Avril_2022
I2: 1900-05-24
D3: Pluie Maxi Jour et total mois | G3: Températures Mini et Maxi | I3: =I1-940 -> -940
F4: Vent maxi | I4: 3
I5: =I2-I3-I4 -> 1082
A6: Jour | B6: Mois | D6: __200
D7: __180 | E7: =INDIRECT($A$1&"!$W9") -> 00:00:00 | I7: =AVRIL_2022!J7 -> 1.8
D8: __160 | E8: 132 | I8: 145
A9: =INDIRECT($A$1&"!$AG5") -> 0 | B9: =INDIRECT($A$1&"!$AG9") -> 0 | D9: __140 | E9: =INDIRECT($A$1&"!$X$9") -> 42.1 | I9: =I7-940 -> -938.2
A10: 200 | B10: 200 | D10: __120 | E10: 2 | I10: 3
A11: =100*(1-(A9/A10)) -> 100 | B11: =100*(1-(B9/B10)) -> 100 | D11: __100 | E11: =E8-E9-E10 -> 87.9 | I11: =I8-I9-I10 -> 1080.2
A12: =20*A11/100 -> 20 | B12: =20*B11/100 -> 20 | D12: __80 | F12: Soleil maxi
A13: 17 | B13: 28 | D13: __60
A14: =(A10/100)*(1+(2*A10/100))/2 -> 5 | B14: =(B10/100)*(1+(2*B10/100))/2 -> 5 | D14: __40 | I14: 22:00:00
D15: _20 | I15: 00:00:00
A16: =INDIRECT($A1&"!$AG9") -> 0 | I16: =AVRIL_2022!$AX$9 -> 11:42:00
A17: =INDIRECT($A$1&"!$AG9") -> 0 | D17: =AVRIL_2022!AG7 -> 2022-04-01 | I17: =I14-I16 -> 10:18:00
D21: =NOW() -> 2022-04-02T16:44:37.840 | G21: =AVRIL_2022!L7 -> 2022-04-01 | H21: =AVRIL_2022!P7 -> 2022-04-01

Sheet MOIS
A1: =AVRIL_2022!C5 -> Avril_2022
B3: Jours de pluie + de 2mm | E3: Jours de soleil + de 4h
A9: 31 | D9: 31 | F9: 31
A10: 0 | D10: 0 | F10: 0
A11: =C51 -> 0 | D11: =C50 -> 1 | F11: =C58 -> 
A12: =A9-A10-A11 -> 31 | D12: =D9-D10-D11 -> 30 | F12: =F9-F10-F11 -> 
B21: =NOW() -> 2022-04-02T16:44:37.840
B23: Heures de pluie | E23: Heures de soleil
A29: 2.5 | D29: 22.08333333
A30: 00:00:00 | D30: 00:00:00 | F30: 22.08333333
A31: =B48 -> 0 | D31: =C48 -> 0.4875 | F31: 00:00:00
A32: =A29-A31 -> 2.5 | D32: =D29-D31 -> 21.59583333 | F32: =C56 -> 
F33: =F30-F32 -> 
E44: Vent fort au-dessus de
E45: 50km/h
B46: Temps Pluie | C46: H de soleil
A48: Total | B48: =AVRIL_2022!AI5 -> 0 | C48: =AVRIL_2022!AX5 -> 0.4875
B49: Jours de pluie
A50: Soleil | C50: =COUNTIF(INDIRECT($A$1&"!$AX11:$AX71"),">4:00") -> 1
A51: Pluie | C51: =COUNTIF(INDIRECT($A$1&"!$Ai11:$Ai71"),">4:00") -> 0 | G51: 31
G52: 0
A53: Nb | G53: =C59 -> 
G54: =G51-G52-G53 -> 
A55: Vent
A56: Nb d'heures < 1.1 km/h | C56: =AVRIL_2022!#REF! -> 
A57: Nb de jours plus petit que 20km/h | C57: =SUM(#REF!) -> 
A58: Nb de jours entre 20 et 50 km/h | C58: =SUM(#REF!) -> 
A59: Nb de jours plus grand que 50km/h | C59: =SUM(#REF!) -> 

Sheet CONSOLE
C1: Marées | E1: https://marine.meteoconsult.fr/meteo-marine/horaires-maree-la-tranche-sur-mer-1083-0.php
G3: Marée haute | H3: 06h08
E4: Températures Lune Chaleur solaire= T°+2° Conditions Vent après mise à jour | G4: Marée haute | H4: 18h18
G6: Coeff | H6: 98
H7: 97
G9: Marée basse | H9: 00h16
G10: Marée basse | H10: 12h34
G13: T° de l'eau | H13: 11
E14: Température ressentie Vent maxi :
E15: Dernière mise à jour : | G15: Heures Soleil | H15: 07h43
E16: Pluie | H16: 20h35
E17: Heures des marées Statistiques Journée Mois Année
H18: Ancienne Fx | I18: Nouvelle Fx | J18: Relevés
G19: T° extérieure | H19: =INDEX(RELEVÉS!$B9:$B50000,COUNTA(RELEVÉS!$B9:$B50000)) -> 9.5 | I19: =VLOOKUP(9^9,RELEVÉS!$B:$B,1,TRUE) -> 9.5 | J19: 9.5 | K19: ok
G20: T° ressentie | H20: =INDEX(RELEVÉS!$D9:$D50000,COUNTA(RELEVÉS!$D9:$D50000)) -> 0 | I20: =VLOOKUP(9^9,RELEVÉS!$D:$D,1,TRUE) -> -0.2 | J20: 8.5 | K20: ?
G21: Vent | H21: =INDEX(RELEVÉS!$F9:$F50000,COUNTA(RELEVÉS!$F9:$F50000)) -> 0 | I21: =VLOOKUP(9^9,RELEVÉS!$F:$F,1,TRUE) -> 23.8 | J21: 5.4 | K21: ?
G22: Vent maxi | H22: 23.8
E31: =NOW() -> 2022-04-02T16:44:37.840

Sheet GRAPHIQUES
C1: Dernière mise à jour le : | F1: =NOW() -> 2022-04-02T16:44:37.840
C2: Température extérieure | I2: Température Mini et Maxi extérieure
C6: Précipitations | I6: Précipitations
C10: Vitesse du vent de la journée | I10: Vitesse du vent
C13: Vitesse du vent
I16: Nombre d'heures de soleil
C21: Chaleur solaire
